fUST/lending_fUST_20250730
["ID","MTS","AMOUNT","RATE_DAILY","PERIOD"]
[376037351,1753833039523,-460.0,0.00018887,2]
[376037352,1753833039532,-461.06418891,0.00018887,2]
[376037353,1753833039542,-460.0,0.00018887,2]
[376037354,1753833039551,-460.0,0.00018887,2]
[376037355,1753833039560,-460.0,0.00018887,2]
[376037356,1753833039570,-460.0,0.00018887,2]
[376037357,1753833039579,-460.0,0.00018887,2]
[376037358,1753833039589,-436.41179171,0.00018887,2]
[376037359,1753833039598,-462.49825127,0.00018887,2]
[376037360,1753833039609,-460.0,0.00018887,2]
[376037361,1753833039618,-460.0,0.00018887,2]
[376037363,1753833039628,-500.0,0.00018887,2]
[376037364,1753833039638,-500.0,0.00018887,2]
[376037366,1753833039647,-500.0,0.00018887,2]
[376037368,1753833039657,-460.0,0.00018887,2]
[376037370,1753833039666,-460.0,0.00018887,2]
[376037372,1753833039677,-460.0,0.00018887,2]
[376037374,1753833039687,-460.0,0.00018887,2]
[376037376,1753833039697,-460.0,0.00018887,2]
[376037378,1753833039707,-460.0,0.00018887,2]
[376037380,1753833039717,-460.0,0.00018887,2]
[376037382,1753833039727,-561.58,0.00018887,2]
[376037384,1753833039735,-460.0,0.00018887,2]
[376037386,1753833039745,-460.0,0.00018887,2]
[376037388,1753833039754,-665.71,0.00018887,2]
[376037390,1753833039764,-460.0,0.00018887,2]
[376037392,1753833039773,-168.38,0.00018887,2]
[376037394,1753833039783,-460.0,0.00018887,2]
[376037396,1753833039792,-1673.8,0.00018887,2]
[376037398,1753833039802,-460.0,0.00018887,2]
[376037400,1753833039811,-460.0,0.00018887,2]
[376037402,1753833039821,-460.0,0.00018887,2]
[376037404,1753833039831,-460.0,0.00018887,2]
[376037406,1753833039840,-460.0,0.00018887,2]
[376037408,1753833039850,-460.0,0.00018887,2]
[376037410,1753833039862,-576.41110111,0.00018887,2]
[376037412,1753833039872,-460.0,0.00018887,2]
[376037414,1753833039881,-460.0,0.00018887,2]
[376037416,1753833039892,-460.0,0.00018887,2]
[376037418,1753833039903,-460.0,0.00018887,2]
[376037420,1753833039913,-1586.75,0.00018887,2]
[376037422,1753833039922,-460.0,0.00018887,2]
[376037424,1753833039931,-460.0,0.00018887,2]
[376037426,1753833039943,-475.28355962,0.00018887,2]
[376037428,1753833039952,-460.0,0.00018887,2]
[376037430,1753833039962,-460.0,0.00018887,2]
[376037432,1753833039971,-460.0,0.00018887,2]
[376037434,1753833039981,-460.0,0.00018887,2]
[376037436,1753833039990,-460.0,0.00018887,2]
[376037438,1753833039999,-71.37723153,0.00018887,2]
[376037441,1753833040026,-388.62276847,0.00018887,2]
[376037443,1753833040035,-460.0,0.00018887,2]
[376037445,1753833040045,-460.0,0.00018887,2]
[376037447,1753833040056,-460.0,0.00018887,2]
[376037449,1753833040065,-460.0,0.00018887,2]
[376037451,1753833040076,-31.55528808,0.00018887,2]
[376037454,1753833040088,-864.00471192,0.00018887,2]
[376037456,1753833040098,-459.32454854,0.00018887,2]
[376037457,1753833040108,-460.0,0.00018887,2]
[376037459,1753833040118,-460.0,0.00018887,2]
[376037461,1753833040127,-469.98,0.00018887,2]
[376037463,1753833040137,-315.70284017,0.00018887,2]
[376037465,1753833040146,-460.0,0.00018887,2]
[376037469,1753833040156,-460.0,0.00018887,2]
[376037470,1753833040165,-466.16479031,0.00018887,2]
[376037472,1753833040174,-460.0,0.00018887,2]
[376037474,1753833040184,-460.0,0.00018887,2]
[376037477,1753833040193,-366.99973718,0.00018887,2]
[376037480,1753833040203,-460.0,0.00018887,2]
[376037482,1753833040212,-370.48236453,0.00018887,2]
[376037485,1753833040224,-89.51763547,0.00018887,2]
[376037486,1753833040233,-460.0,0.00018887,2]
[376037488,1753833040242,-460.0,0.00018887,2]
[376037490,1753833040251,-460.0,0.00018887,2]
[376037492,1753833040261,-460.0,0.00018887,2]
[376037494,1753833040271,-578.17,0.00018887,2]
[376037496,1753833040281,-209.89,0.00018887,2]
[376037498,1753833040290,-460.0,0.00018887,2]
[376037501,1753833040300,-460.0,0.00018887,2]
[376037502,1753833040309,-460.0,0.00018887,2]
[376037504,1753833040319,-460.0,0.00018887,2]
[376037506,1753833040328,-460.0,0.00018888,2]
[376037508,1753833040338,-460.0,0.00018888,2]
[376037510,1753833040347,-462.91997383,0.00018888,2]
[376037512,1753833040357,-519.98483283,0.00018888,2]
[376037514,1753833040366,-460.0,0.00018888,2]
[376037516,1753833040375,-460.0,0.00018888,2]
[376037518,1753833040385,-460.0,0.00018888,2]
[376037520,1753833040394,-460.0,0.00018888,2]
[376037522,1753833040405,-460.0,0.00018888,2]
[376037524,1753833040414,-460.0,0.00018888,2]
[376037526,1753833040423,-460.0,0.00018888,2]
[376037528,1753833040433,-319.07915787,0.00018888,2]
[376037622,1753833043648,-140.92084213,0.00018888,2]
[376037623,1753833043658,-460.0,0.00018888,2]
[376037624,1753833043668,-460.0,0.00018888,2]
[376037625,1753833043679,-460.0,0.00018888,2]
[376037626,1753833043688,-461.94496327,0.00018888,2]
[376037627,1753833043698,-460.0,0.00018888,2]
[376037628,1753833043708,-156.89515509,0.00018888,2]
[376037629,1753833043718,-327.68185609,0.00018888,2]
[376037630,1753833043727,-460.0,0.00018888,2]
[376037632,1753833043736,-460.0,0.00018888,2]
[376037635,1753833043746,-460.0,0.00018888,2]
[376037638,1753833043755,-460.0,0.00018888,2]
[376037641,1753833043764,-460.0,0.00018888,2]
[376037644,1753833043774,-460.0,0.00018888,2]
[376037646,1753833043785,-460.0,0.00018888,2]
[376037649,1753833043794,-460.0,0.00018888,2]
[376037652,1753833043803,-460.0,0.00018888,2]
[376037654,1753833043813,-460.0,0.00018888,2]
[376037656,1753833043823,-269.6474469,0.00018888,2]
[376037659,1753833043832,-460.0,0.00018888,2]
[376037662,1753833043842,-460.0,0.00018888,2]
[376037665,1753833043851,-544.21595373,0.00018888,2]
[376037666,1753833043863,-460.0,0.00018888,2]
[376037668,1753833043873,-460.0,0.00018888,2]
[376037670,1753833043882,-460.0,0.00018888,2]
[376037673,1753833043892,-212.00340271,0.00018888,2]
[376037676,1753833043914,-247.99659729,0.00018888,2]
[376037678,1753833043925,-464.02397835,0.00018888,2]
[376037680,1753833043934,-186.04158729,0.00018888,2]
[376037682,1753833043944,-460.0,0.00018888,2]
[376037684,1753833043954,-204.08847137,0.00018888,2]
[376037948,1753833046701,-460.0,0.00018887,2]
[376037950,1753833046711,-466.09411442,0.00018887,2]
[376037952,1753833046721,-255.91152863,0.00018888,2]
[376037954,1753833046731,-460.0,0.00018888,2]
[376037955,1753833046741,-460.0,0.00018888,2]
[376037957,1753833046751,-460.0,0.00018888,2]
[376037959,1753833046760,-460.0,0.00018888,2]
[376037961,1753833046770,-460.0,0.00018888,2]
[376037963,1753833046779,-460.0,0.00018888,2]
[376037965,1753833046789,-460.0,0.00018888,2]
[376037967,1753833046800,-482.6,0.00018888,2]
[376037969,1753833046810,-460.0,0.00018888,2]
[376037971,1753833046819,-460.0,0.00018888,2]
[376037973,1753833046829,-2545.56,0.00018888,2]
[376037975,1753833046839,-241.95160117,0.00018888,2]
[376037977,1753833046848,-470.40732022,0.00018888,2]
[376037979,1753833046858,-486.68,0.00018888,2]
[376037981,1753833046870,-1003.75,0.00018888,2]
[376037983,1753833046879,-460.0,0.00018888,2]
[376037985,1753833046889,-460.0,0.00018888,2]
[376037987,1753833046898,-1533.53,0.00018888,2]
[376037989,1753833046909,-460.0,0.00018888,2]
[376037991,1753833046918,-460.0,0.00018888,2]
[376037993,1753833046927,-460.0,0.00018888,2]
[376037995,1753833046937,-460.0,0.00018888,2]
[376037997,1753833046946,-460.0,0.00018888,2]
[376037999,1753833046955,-460.0,0.00018888,2]
[376038001,1753833046964,-522.75,0.00018888,2]
[376038003,1753833046974,-460.0,0.00018888,2]
[376038005,1753833046983,-460.0,0.00018888,2]
[376038007,1753833046991,-460.0,0.00018888,2]
[376038008,1753833047001,-201.20081841,0.00018888,2]
[376038010,1753833047010,-1267.77,0.00018888,2]
[376038012,1753833047020,-460.0,0.00018888,2]
[376038014,1753833047029,-500.0,0.00018888,2]
[376038016,1753833047039,-778.0,0.00018888,2]
[376038018,1753833047048,-465.09713331,0.00018889,2]
[376038021,1753833047058,-460.0,0.00018889,2]
[376038022,1753833047067,-460.0,0.00018889,2]
[376038024,1753833047078,-460.0,0.00018889,2]
[376038026,1753833047087,-460.0,0.00018889,2]
[376038028,1753833047096,-457.96705291,0.00018889,2]
[376038030,1753833047106,-463.18029216,0.00018889,2]
[376038032,1753833047115,-460.0,0.00018889,2]
[376038034,1753833047124,-460.0,0.00018889,2]
[376038036,1753833047134,-460.0,0.00018889,2]
[376038038,1753833047144,-460.0,0.00018889,2]
[376038040,1753833047153,-460.0,0.00018889,2]
[376038042,1753833047163,-460.0,0.00018889,2]
[376038044,1753833047172,-460.0,0.00018889,2]
[376038046,1753833047183,-460.0,0.00018889,2]
[376038048,1753833047192,-460.0,0.00018889,2]
[376038050,1753833047201,-460.0,0.00018889,2]
[376038052,1753833047211,-460.0,0.00018889,2]
[376038054,1753833047220,-460.0,0.00018889,2]
[376038056,1753833047230,-460.0,0.00018889,2]
[376038058,1753833047239,-460.0,0.00018889,2]
[376038060,1753833047248,-460.0,0.00018889,2]
[376038062,1753833047261,-460.0,0.00018889,2]
[376038064,1753833047270,-460.0,0.00018889,2]
[376038078,1753833047469,-460.0,0.00018889,2]
[376038079,1753833047481,-460.0,0.00018889,2]
[376038080,1753833047490,-460.0,0.00018889,2]
[376038081,1753833047499,-460.0,0.00018889,2]
[376038082,1753833047509,-3585.95,0.00018889,2]
[376038083,1753833047518,-461.61286797,0.00018889,2]
[376038084,1753833047527,-460.0,0.00018889,2]
[376038085,1753833047536,-460.0,0.00018889,2]
[376038086,1753833047545,-461.79010418,0.00018889,2]
[376038087,1753833047554,-616.23,0.00018889,2]
[376038088,1753833047563,-460.0,0.00018889,2]
[376038089,1753833047573,-460.0,0.00018889,2]
[376038090,1753833047583,-464.86997175,0.00018889,2]
[376038091,1753833047592,-217.09697227,0.00018889,2]
[376038092,1753833047602,-1113.87,0.00018889,2]
[376038093,1753833047611,-460.0,0.00018889,2]
[376038094,1753833047620,-460.0,0.00018889,2]
[376038095,1753833047630,-460.0,0.0001889,2]
[376038096,1753833047639,-1519.55,0.0001889,2]
[376038097,1753833047648,-460.0,0.0001889,2]
[376038099,1753833047657,-460.0,0.0001889,2]
[376038100,1753833047666,-460.0,0.0001889,2]
[376038102,1753833047676,-460.0,0.0001889,2]
[376038104,1753833047686,-866.1,0.0001889,2]
[376038106,1753833047695,-500.0,0.00018892,2]
[376038108,1753833047705,-314.44,0.00019152,3]
[376038110,1753833047715,-460.0,0.0001916,2]
[376038112,1753833047724,-464.98555228,0.0001916,2]
[376038114,1753833047733,-1090.66,0.0001916,2]
[376038116,1753833047742,-460.0,0.0001916,2]
[376038118,1753833047751,-460.0,0.00019161,2]
[376038120,1753833047760,-532.83,0.00019161,2]
[376038122,1753833047769,-460.0,0.00019161,2]
[376038124,1753833047779,-460.0,0.00019161,2]
[376038126,1753833047788,-460.0,0.00019161,2]
[376038128,1753833047797,-665.71,0.00019161,2]
[376038130,1753833047807,-460.0,0.00019161,2]
[376038132,1753833047816,-1673.8,0.00019161,2]
[376038134,1753833047826,-460.0,0.00019161,2]
[376038136,1753833047835,-355.0389995,0.00019161,2]
[376038137,1753833047844,-460.0,0.00019161,2]
[376038139,1753833047854,-1586.75,0.00019161,2]
[376038142,1753833047868,-460.0,0.00019161,2]
[376038144,1753833047877,-460.0,0.00019161,2]
[376038146,1753833047887,-460.0,0.00019161,2]
[376038148,1753833047897,-460.0,0.00019161,2]
[376038150,1753833047907,-460.0,0.00019161,2]
[376038151,1753833047916,-895.56,0.00019161,2]
[376038153,1753833047925,-469.98,0.00019161,2]
[376038155,1753833047935,-460.0,0.00019161,2]
[376038157,1753833047945,-460.0,0.00019161,2]
[376038159,1753833047955,-460.0,0.00019161,2]
[376038161,1753833047965,-578.17,0.00019161,2]
[376038164,1753833047974,-460.0,0.00019162,2]
[376038166,1753833047987,-564.58667565,0.00019162,2]
[376038168,1753833047996,-215.92478924,0.00019162,2]
[376038170,1753833048006,-185.94323171,0.00019162,2]
[376038172,1753833048015,-460.0,0.00019162,2]
[376038174,1753833048024,-482.6,0.00019162,2]
[376038175,1753833048035,-2545.56,0.00019162,2]
[376038177,1753833048044,-486.68,0.00019162,2]
[376038179,1753833048054,-1003.75,0.00019162,2]
[376038182,1753833048064,-1533.53,0.00019162,2]
[376038184,1753833048073,-460.0,0.00019162,2]
[376038186,1753833048082,-460.0,0.00019162,2]
[376038187,1753833048091,-522.75,0.00019162,2]
[376038190,1753833048101,-460.0,0.00019162,2]
[376038191,1753833048110,-460.0,0.00019162,2]
[376038193,1753833048120,-1267.77,0.00019162,2]
[376038196,1753833048129,-778.0,0.00019162,2]
[376038198,1753833048139,-420.46097422,0.00019163,2]
[376038983,1753833076413,152.281404,0.00023,30]
[376038984,1753833076718,152.281404,0.00023,30]
[376038985,1753833104674,26162.87,0.00018788,2]
[376038986,1753833246253,1000.0,0.00017968,2]
[376038987,1753833346218,79999.9999998,0.00026,120]
[376038988,1753833367979,447.0,0.0001878,2]
[376038989,1753833456395,180.12171065,0.00018788,2]
[376038992,1753833577471,168.0,0.00018468,2]
[376038993,1753833583156,168.0,0.00018471,2]
[376038994,1753833587300,168.0,0.00018294,2]
[376038995,1753833592476,168.0,0.0001845,2]
[376038996,1753833596963,168.0,0.00018482,2]
[376038997,1753833601137,168.0,0.0001857,2]
[376038999,1753833649178,157.60649681,0.00018789,2]
[376039000,1753833677196,152.281404,0.00023,30]
[376039001,1753833677533,152.281404,0.00023,30]
[376039002,1753833751679,200.0,0.00024967,120]
[376039003,1753833766652,5000.0,0.000188,6]
[376039005,1753833783016,5000.0,0.000188,6]
[376039006,1753833799496,5000.0,0.0001879,2]
[376039010,1753833816105,1712.85228677,0.0001879,2]
[376039011,1753833840772,157.60649676,0.00018788,2]
[376039014,1753833962110,391.069873,0.00013699,2]
[376039016,1753834005327,409.0,0.00018317,2]
[376039017,1753834020942,157.60649676,0.00018787,2]
[376039019,1753834183594,156.280137,0.0002208,30]
[376039020,1753834193340,157.60649676,0.00018786,2]
[376039021,1753834215545,207.853923,0.00023,30]
[376039036,1753834232004,-447.0,0.00018832,2]
[376039037,1753834232014,-99.50562813,0.00018843,2]
[376039038,1753834232091,-347.49437187,0.00018843,2]
[376039039,1753834232101,-460.0,0.00018886,2]
[376039040,1753834232111,-460.0,0.00018886,2]
[376039042,1753834232120,-549.39779389,0.00018886,2]
[376039044,1753834232131,-460.0,0.00018886,2]
[376039046,1753834232140,-460.0,0.00018886,2]
[376039048,1753834232150,-460.0,0.00018886,2]
[376039050,1753834232162,-494.91,0.00018886,2]
[376039052,1753834232172,-460.0,0.00018886,2]
[376039054,1753834232182,-460.0,0.00018886,2]
[376039056,1753834232195,-389.39870044,0.00018886,2]
[376039668,1753834238418,-70.60129956,0.00018886,2]
[376039670,1753834238429,-460.0,0.00018886,2]
[376039672,1753834238439,-460.0,0.00018886,2]
[376039674,1753834238448,-460.0,0.00018886,2]
[376039676,1753834238458,-460.0,0.00018886,2]
[376039678,1753834238468,-460.0,0.00018886,2]
[376039680,1753834238478,-191.30406378,0.00018886,2]
[376039682,1753834238488,-460.0,0.00018886,2]
[376039684,1753834238498,-460.0,0.00018886,2]
[376039686,1753834238507,-414.6053652,0.00018886,2]
[376039688,1753834238517,-460.0,0.00018886,2]
[376039690,1753834238527,-460.0,0.00018886,2]
[376039692,1753834238536,-465.29,0.00018886,2]
[376039694,1753834238546,-460.0,0.00018886,2]
[376039696,1753834238556,-460.0,0.00018886,2]
[376039698,1753834238566,-460.0,0.00018886,2]
[376039700,1753834238575,-460.0,0.00018886,2]
[376039702,1753834238584,-460.0,0.00018886,2]
[376039704,1753834238594,-460.0,0.00018886,2]
[376039706,1753834238603,-460.0,0.00018886,2]
[376039708,1753834238612,-460.0,0.00018886,2]
[376039710,1753834238622,-460.0,0.00018886,2]
[376039712,1753834238631,-460.0,0.00018886,2]
[376039714,1753834238640,-460.0,0.00018886,2]
[376039716,1753834238649,-460.0,0.00018886,2]
[376039718,1753834238658,-1629.83,0.00018886,2]
[376039720,1753834238667,-460.0,0.00018886,2]
[376039722,1753834238676,-460.0,0.00018886,2]
[376039724,1753834238685,-460.0,0.00018886,2]
[376039726,1753834238695,-460.0,0.00018886,2]
[376039728,1753834238704,-460.0,0.00018886,2]
[376039730,1753834238713,-460.0,0.00018886,2]
[376039732,1753834238722,-460.0,0.00018886,2]
[376039733,1753834238732,-1525.58,0.00018886,2]
[376039736,1753834238743,-460.0,0.00018886,2]
[376039737,1753834238754,-460.0,0.00018886,2]
[376039739,1753834238766,-460.0,0.00018886,2]
[376039742,1753834238778,-460.0,0.00018886,2]
[376039743,1753834238787,-460.0,0.00018886,2]
[376039745,1753834238797,-460.0,0.00018886,2]
[376039748,1753834238807,-460.0,0.00018886,2]
[376039749,1753834238816,-582.34,0.00018886,2]
[376039750,1753834238827,-460.0,0.00018886,2]
[376039751,1753834238836,-2448.7,0.00018886,2]
[376039752,1753834238846,-1481.89,0.00018886,2]
[376039753,1753834238855,-460.0,0.00018886,2]
[376039754,1753834238865,-1072.47,0.00018886,2]
[376039755,1753834238877,-460.0,0.00018886,2]
[376039757,1753834238887,-460.0,0.00018886,2]
[376039758,1753834238896,-460.0,0.00018886,2]
[376039760,1753834238906,-460.0,0.00018886,2]
[376039762,1753834238916,-460.0,0.00018886,2]
[376039765,1753834238926,-460.0,0.00018886,2]
[376039767,1753834238935,-460.0,0.00018886,2]
[376039769,1753834238944,-460.0,0.00018887,2]
[376039771,1753834238953,-314.59413272,0.00018887,2]
[376039773,1753834238963,-460.0,0.00018887,2]
[376039775,1753834238972,-520.65,0.00018887,2]
[376039777,1753834238982,-460.0,0.00018887,2]
[376039779,1753834238991,-460.0,0.00018887,2]
[376039781,1753834239000,-460.0,0.00018888,2]
[376039783,1753834239010,-460.0,0.00018888,2]
[376039785,1753834239019,-3619.67,0.00018888,2]
[376039787,1753834239029,-325.48728884,0.00018888,2]
[376039789,1753834239038,-460.0,0.00018888,2]
[376039791,1753834239048,-1534.46,0.00018888,2]
[376039793,1753834239057,-590.56,0.00018888,2]
[376039795,1753834239066,-460.0,0.00018888,2]
[376039797,1753834239085,-460.0,0.00018888,2]
[376039798,1753834239095,-1011.49,0.00018888,2]
[376039800,1753834239104,-1115.69,0.00018888,2]
[376039802,1753834239114,-830.01,0.00018889,2]
[376039804,1753834239124,-2030.296672,0.0001904,2]
[376039807,1753834239133,-447.0,0.00019052,2]
[376039808,1753834239143,-168.0,0.00019087,2]
[376039810,1753834239152,-2105.41764886,0.00019095,2]
[376039812,1753834239161,-447.0,0.00019106,2]
[376039814,1753834239171,-151.0,0.00019138,2]
[376039816,1753834239180,-151.0,0.00019138,2]
[376039818,1753834239192,-4129.0215393,0.00019138,2]
[376039821,1753834239205,-1300.00000072,0.00019138,2]
[376039823,1753834239216,-4552.19964687,0.00019138,2]
[376039825,1753834239228,-15018.77881311,0.00019138,2]
[376039827,1753834239238,-151.0,0.00019138,2]
[376039829,1753834239248,-151.0,0.00019138,2]
[376039831,1753834239257,-151.0,0.00019138,2]
[376039849,1753834239412,-151.0,0.00019138,2]
[376039852,1753834239429,-151.0,0.00019138,2]
[376039854,1753834239440,-151.0,0.00019138,2]
[376039856,1753834239449,-151.0,0.00019138,2]
[376039858,1753834239459,-151.0,0.00019138,2]
[376039860,1753834239468,-151.0,0.00019138,2]
[376039862,1753834239477,-163.45993335,0.00019138,2]
[376039864,1753834239487,-151.0,0.00019138,2]
[376039866,1753834239496,-151.0,0.00019138,2]
[376039868,1753834239506,-151.0,0.00019138,2]
[376039870,1753834239515,-151.0,0.00019138,2]
[376039872,1753834239524,-151.0,0.00019138,2]
[376039874,1753834239534,-151.0,0.00019138,2]
[376039876,1753834239543,-151.0,0.00019138,2]
[376039878,1753834239552,-151.0,0.00019138,2]
[376039880,1753834239561,-151.0,0.00019138,2]
[376039882,1753834239571,-151.0,0.00019138,2]
[376039884,1753834239580,-151.0,0.00019138,2]
[376039886,1753834239590,-255.51521371,0.00019138,2]
[376039887,1753834239600,-151.0,0.00019138,2]
[376039890,1753834239610,-151.0,0.00019138,2]
[376039891,1753834239619,-151.0,0.00019138,2]
[376039894,1753834239629,-151.0,0.00019138,2]
[376039896,1753834239639,-151.0,0.00019138,2]
[376039898,1753834239648,-151.0,0.00019138,2]
[376039899,1753834239658,-151.0,0.00019138,2]
[376039901,1753834239667,-1959.64670695,0.0001915,2]
[376039903,1753834239678,-265.659028,0.00019153,2]
[376039905,1753834239688,-494.91,0.0001916,2]
[376039907,1753834239697,-460.0,0.0001916,2]
[376039909,1753834239707,-460.0,0.0001916,2]
[376039911,1753834239716,-460.0,0.0001916,2]
[376039913,1753834239725,-584.72174384,0.0001916,2]
[376039915,1753834239735,-460.0,0.0001916,2]
[376039917,1753834239744,-465.29,0.0001916,2]
[376039919,1753834239754,-460.0,0.0001916,2]
[376039921,1753834239763,-429.10597818,0.0001916,2]
[376039923,1753834239773,-460.0,0.0001916,2]
[376039925,1753834239782,-460.0,0.0001916,2]
[376039928,1753834239793,-460.0,0.0001916,2]
[376039929,1753834239803,-460.0,0.0001916,2]
[376039931,1753834239812,-1629.83,0.0001916,2]
[376039934,1753834239822,-460.0,0.0001916,2]
[376039936,1753834239832,-460.0,0.0001916,2]
[376039938,1753834239841,-460.0,0.0001916,2]
[376039939,1753834239851,-1525.58,0.0001916,2]
[376039942,1753834239860,-460.0,0.0001916,2]
[376039943,1753834239869,-582.34,0.0001916,2]
[376039946,1753834239879,-2448.7,0.0001916,2]
[376039948,1753834239889,-1481.89,0.0001916,2]
[376039950,1753834239898,-460.0,0.0001916,2]
[376039952,1753834239908,-1072.47,0.0001916,2]
[376039954,1753834239919,-460.0,0.0001916,2]
[376039956,1753834239930,-460.0,0.0001916,2]
[376039958,1753834239939,-460.0,0.0001916,2]
[376039960,1753834239948,-460.0,0.0001916,2]
[376039962,1753834239957,-460.0,0.0001916,2]
[376039964,1753834239967,-460.0,0.00019161,2]
[376039966,1753834239976,-460.0,0.00019161,2]
[376039968,1753834239986,-460.0,0.00019161,2]
[376039970,1753834239997,-641.04,0.00019161,2]
[376039972,1753834240006,-529.99,0.00019161,2]
[376039974,1753834240015,-518.35,0.00019161,2]
[376039976,1753834240024,-460.0,0.00019161,2]
[376039978,1753834240034,-460.0,0.00019161,2]
[376039980,1753834240043,-460.0,0.00019161,2]
[376039982,1753834240053,-460.0,0.00019161,2]
[376039984,1753834240062,-460.0,0.00019161,2]
[376039986,1753834240071,-460.0,0.00019161,2]
[376039987,1753834240080,-460.0,0.00019161,2]
[376039989,1753834240090,-460.0,0.00019161,2]
[376039991,1753834240099,-460.0,0.00019161,2]
[376039993,1753834240109,-1215.6,0.00019161,2]
[376039995,1753834240119,-460.0,0.00019161,2]
[376039997,1753834240128,-460.0,0.00019161,2]
[376039999,1753834240137,-1028.48,0.00019161,2]
[376040001,1753834240147,-460.0,0.00019161,2]
[376040003,1753834240156,-785.59,0.00019161,2]
[376040004,1753834240167,-460.0,0.00019161,2]
[376040006,1753834240178,-460.0,0.00019162,2]
[376040008,1753834240191,-3619.67,0.00019162,2]
[376040010,1753834240200,-460.0,0.00019162,2]
[376040012,1753834240210,-1534.46,0.00019162,2]
[376040014,1753834240219,-590.56,0.00019162,2]
[376040016,1753834240229,-460.0,0.00019162,2]
[376040018,1753834240238,-1011.49,0.00019162,2]
[376040020,1753834240248,-1115.69,0.00019162,2]
[376040022,1753834240258,-830.01,0.00019163,2]
[376040024,1753834240268,-4288.84692972,0.00019163,2]
[376040026,1753834240277,-154.91644613,0.00019163,2]
[376040028,1753834240287,-500.0,0.00019164,2]
[376040030,1753834240296,-200.107859,0.00019178,2]
[376040032,1753834240305,-447.0,0.00019179,2]
[376040034,1753834240315,-168.0,0.00019215,2]
[376040036,1753834240324,-447.0,0.00019251,2]
[376040038,1753834240334,-200.0,0.00019263,15]
[376040040,1753834240343,-200.0,0.00019263,15]
[376040042,1753834240353,-200.0,0.00019263,15]
[376040044,1753834240363,-200.0,0.00019263,15]
[376040046,1753834240372,-168.0,0.0001929,2]
[376040048,1753834240381,-168.0,0.00019328,2]
[376040050,1753834240391,-447.0,0.0001934,2]
[376040052,1753834240401,-153.0,0.000194,2]
[376040054,1753834240410,-153.0,0.000194,2]
[376040056,1753834240420,-430.1392862,0.000194,2]
[376040058,1753834240430,-153.0,0.000194,2]
[376040060,1753834240439,-860.2785724,0.000194,2]
[376040062,1753834240449,-153.0,0.000194,2]
[376040064,1753834240459,-153.0,0.000194,2]
[376040066,1753834240468,-578.1881624,0.000194,2]
[376040068,1753834240478,-153.0,0.000194,2]
[376040070,1753834240488,-153.0,0.000194,2]
[376040072,1753834240497,-153.0,0.000194,2]
[376040074,1753834240508,-268.4777966,0.000194,2]
[376040076,1753834240517,-859.6669604,0.000194,2]
[376040078,1753834240527,-578.1881624,0.000194,2]
[376040080,1753834240537,-430.1392862,0.000194,2]
[376040082,1753834240546,-153.0,0.000194,2]